fUST/lending_fUST_20260226
["ID","MTS","AMOUNT","RATE_DAILY","PERIOD"]
[406695843,1772093438169,-500.0,0.00013698,2]
[406695844,1772093438178,-500.0,0.00013698,2]
[406695845,1772093438187,-616.43826848,0.00013699,2]
[406695846,1772093438196,-500.0,0.00013699,2]
[406695847,1772093438205,-193.5027151,0.00013699,2]
[406695848,1772093438217,-500.0,0.00013699,2]
[406695849,1772093438226,-500.0,0.00013699,2]
[406695850,1772093438235,-500.0,0.00013699,2]
[406695851,1772093438244,-500.0,0.00013699,2]
[406695852,1772093438253,-227.33296448,0.00013699,2]
[406695853,1772093438262,-1000.0,0.00013821,2]
[406695854,1772093438271,-500.0,0.00013821,2]
[406695855,1772093438280,-1000.0,0.00013821,2]
[406695856,1772093438289,-1000.0,0.00013821,2]
[406695857,1772093438298,-1000.0,0.00013821,2]
[406695858,1772093438307,-1000.0,0.00013821,2]
[406695859,1772093438316,-1000.0,0.00013821,2]
[406695860,1772093438325,-1000.0,0.00013821,2]
[406695861,1772093438335,-1000.0,0.00013821,2]
[406695862,1772093438344,-500.0,0.00014246,2]
[406695863,1772093438353,-1000.0,0.00014247,2]
[406695864,1772093438362,-1000.0,0.00014247,2]
[406695865,1772093438371,-1000.0,0.00014247,2]
[406695866,1772093438380,-1000.0,0.00014247,2]
[406695867,1772093438389,-1000.0,0.00014247,2]
[406695868,1772093438398,-1000.0,0.00014368,2]
[406695869,1772093438407,-1500.0,0.00014368,2]
[406695870,1772093438416,-1500.0,0.00014368,2]
[406695871,1772093438425,-503.64653305,0.00014368,2]
[406695872,1772093438434,-1500.0,0.00014368,2]
[406695873,1772093438443,-1500.0,0.00014368,2]
[406695874,1772093438452,-1500.0,0.00014368,2]
[406695875,1772093438461,-1500.0,0.00014368,2]
[406695876,1772093438470,-514.41511058,0.00014795,2]
[406695877,1772093438479,-273.17028323,0.00014795,2]
[406695878,1772093438488,-1500.0,0.00014795,2]
[406695879,1772093438497,-1500.0,0.00014795,2]
[406695880,1772093438506,-692.55944331,0.00014816,2]
[406695881,1772093438515,-187.44443114,0.00014822,2]
[406695882,1772093438524,-1457.8411023,0.00014916,2]
[406695883,1772093438532,-717.89827996,0.00014916,2]
[406695884,1772093438541,-821.77035483,0.00014916,2]
[406695885,1772093438550,-2000.0,0.00014916,2]
[406695886,1772093438559,-182.85285246,0.00014916,2]
[406695887,1772093438567,-420.0,0.00015011,2]
[406695888,1772093438576,-202.45322217,0.00015068,2]
[406695889,1772093438585,-2000.0,0.00015342,2]
[406695890,1772093438594,-2000.0,0.00015342,2]
[406695891,1772093438603,-151.0,0.00015464,2]
[406695892,1772093438611,-151.0,0.00015464,2]
[406695893,1772093438620,-151.0,0.00015464,2]
[406695894,1772093438629,-177.83102545,0.00015464,2]
[406695895,1772093438638,-2401.74550988,0.00015464,2]
[406695896,1772093438647,-93.64341155,0.000155,30]
[406695897,1772093438656,-692.55944327,0.00015599,2]
[406695898,1772093438665,-1200.0,0.00015699,2]
[406695899,1772093438674,-2000.0,0.000157,2]
[406695900,1772093438682,-500.0,0.000157,2]
[406695901,1772093438691,-287.5,0.000157,2]
[406695902,1772093438700,-4742.32867046,0.00015741,2]
[406695903,1772093438709,-300.0,0.00015796,2]
[406695904,1772093438718,-300.0,0.00015796,2]
[406695905,1772093438727,-300.0,0.00015796,2]
[406695906,1772093438736,-4683.92288791,0.00015797,2]
[406695907,1772093438744,-2000.0,0.000158,2]
[406695908,1772093438753,-500.0,0.0001589,2]
[406695909,1772093438762,-2500.0,0.0001589,2]
[406695910,1772093438771,-1539.29730173,0.0001589,2]
[406695911,1772093438780,-2000.0,0.000159,2]
[406695912,1772093438789,-2000.0,0.00016,2]
[406695913,1772093438800,-3000.0,0.00016012,2]
[406695914,1772093438809,-508.55408779,0.00016012,2]
[406695915,1772093438819,-300.0,0.00016055,2]
[406695916,1772093438828,-300.0,0.00016055,2]
[406695917,1772093438837,-300.0,0.00016055,2]
[406695918,1772093438845,-300.0,0.00016055,2]
[406695919,1772093438855,-300.0,0.00016055,2]
[406695920,1772093438863,-300.0,0.00016055,2]
[406695921,1772093438872,-300.0,0.00016055,2]
[406695922,1772093438883,-300.0,0.00016055,2]
[406695923,1772093438894,-300.0,0.00016055,2]
[406695924,1772093438904,-300.0,0.00016055,2]
[406695925,1772093438914,-300.0,0.00016055,2]
[406695926,1772093438923,-300.0,0.00016055,2]
[406695927,1772093438932,-300.0,0.00016055,2]
[406695928,1772093438941,-300.0,0.00016055,2]
[406695929,1772093438950,-300.0,0.00016055,2]
[406695930,1772093438961,-1602.48,0.000161,2]
[406695931,1772093438970,-301.48408926,0.00016122,2]
[406695932,1772093438979,-210.39,0.00016148,3]
[406695933,1772093438988,-600.0,0.00016332,2]
[406695934,1772093438997,-692.55944327,0.00016381,2]
[406695935,1772093439006,-500.0,0.00016412,2]
[406695936,1772093439015,-165.29423594,0.00016438,2]
[406695937,1772093439024,-3000.0,0.00016438,2]
[406695938,1772093439032,-587.0,0.00016451,2]
[406695939,1772093439041,-5109.7149641,0.00016525,2]
[406695940,1772093439050,-1657.98990685,0.0001656,2]
[406695941,1772093439059,-5046.63671894,0.00016608,2]
[406695942,1772093439069,-151.0,0.00016608,2]
[406695943,1772093439078,-1911.58262274,0.0001685,2]
[406695944,1772093439087,-500.0,0.00016904,2]
[406695945,1772093439096,-500.0,0.00016904,2]
[406695946,1772093439105,-3500.0,0.00016986,2]
[406695947,1772093439114,-1144.31557996,0.00016989,2]
[406695948,1772093439123,-29645.53295817,0.0001699,2]
[406695973,1772093442806,-70354.46704183,0.0001699,2]
[406695974,1772093442816,-72304.70452249,0.00017,2]
[406695975,1772093442825,-692.55944327,0.00017164,2]
[406695976,1772093442835,-1680.0,0.00017256,2]
[406695977,1772093442844,-420.0,0.00017274,2]
[406695978,1772093442854,-420.0,0.00017274,2]
[406695979,1772093442863,-323.0,0.00017274,2]
[406695980,1772093442872,-500.0,0.00017276,2]
[406695981,1772093442883,-6063.66777699,0.000173,2]
[406695982,1772093442896,-5429.73109265,0.00017308,2]
[406695983,1772093442906,-5362.58284429,0.00017419,2]
[406695984,1772093442916,-500.0,0.00017534,2]
[406695985,1772093442926,-250.0,0.00017537,2]
[406695986,1772093442935,-500.0,0.000176,2]
[406695987,1772093442944,-692.55944327,0.00017946,2]
[406695988,1772093442954,-720.0,0.00017965,2]
[406695989,1772093442964,-67216.36966447,0.00017997,2]
[406695990,1772093442973,-201.82044,0.00017997,2]
[406695991,1772093442982,-494197.39224262,0.00018,2]
[406695992,1772093442994,-128076.81783946,0.00018,2]
[406695993,1772093443003,-487.0,0.00018,2]
[406695994,1772093443013,-487.0,0.00018,2]
[406695995,1772093443022,-487.0,0.00018,2]
[406695996,1772093443031,-487.0,0.00018,2]
[406695997,1772093443041,-487.0,0.00018,2]
[406695998,1772093443050,-487.0,0.00018,2]
[406695999,1772093443060,-487.0,0.00018,2]
[406696000,1772093443070,-487.0,0.00018,2]
[406696001,1772093443079,-487.0,0.00018,2]
[406696003,1772093443088,-487.0,0.00018,2]
[406696004,1772093443098,-487.0,0.00018,2]
[406696005,1772093443107,-487.0,0.00018,2]
[406696006,1772093443116,-487.0,0.00018,2]
[406696007,1772093443129,-487.0,0.00018,2]
[406696008,1772093443138,-487.0,0.00018,2]
[406696009,1772093443147,-487.0,0.00018,2]
[406696010,1772093443157,-487.0,0.00018,2]
[406696011,1772093443166,-487.0,0.00018,2]
[406696012,1772093443175,-487.0,0.00018,2]
[406696013,1772093443185,-487.0,0.00018,2]
[406696014,1772093443195,-487.0,0.00018,2]
[406696015,1772093443204,-487.0,0.00018,2]
[406696016,1772093443214,-525.98,0.00018,2]
[406696017,1772093443224,-823.0,0.00018028,2]
[406696018,1772093443233,-744.71502317,0.00018039,2]
[406696019,1772093443243,-5477.10125773,0.00018091,2]
[406696020,1772093443467,-318.6,0.00018115,2]
[406696021,1772093443488,-341.38639519,0.00018122,2]
[406696022,1772093443497,-500.0,0.00018139,2]
[406696023,1772093443506,-200.18390273,0.00018184,2]
[406696024,1772093443516,-318.6,0.00018389,2]
[406696025,1772093443526,-403.0,0.00018473,2]
[406696026,1772093443535,-318.6,0.00018663,2]
[406696027,1772093443545,-214.396732,0.00018697,7]
[406696028,1772093443554,-403.0,0.0001872,2]
[406696029,1772093443563,-788.0,0.0001872,2]
[406696030,1772093443572,-715.0,0.00018793,2]
[406696031,1772093443581,-587.0,0.0001889,2]
[406696032,1772093443590,-587.0,0.0001889,2]
[406696033,1772093443599,-318.6,0.00018937,2]
[406696034,1772093443609,-2351.0,0.00018967,2]
[406696035,1772093443617,-4990.86767871,0.00019,2]
[406696036,1772093443626,-2603.49,0.00019,2]
[406696037,1772093443635,-21254.18130381,0.00019,2]
[406696038,1772093443645,-403.0,0.0001904,2]
[406696039,1772093443654,-12882.55496494,0.00019046,2]
[406696040,1772093443662,-522.02239475,0.00019046,2]
[406696041,1772093443672,-644.79446246,0.00019073,2]
[406696042,1772093443681,-250.0,0.00019073,2]
[406696043,1772093443690,-250.0,0.00019073,2]
[406696044,1772093443699,-250.0,0.00019073,2]
[406696045,1772093443707,-250.0,0.00019073,2]
[406696046,1772093443717,-250.0,0.00019073,2]
[406696047,1772093443726,-250.0,0.00019073,2]
[406696048,1772093443735,-250.0,0.00019073,2]
[406696049,1772093443744,-250.0,0.00019073,2]
[406696050,1772093443753,-250.0,0.00019073,2]
[406696051,1772093443762,-250.0,0.00019073,2]
[406696052,1772093443771,-250.0,0.00019073,2]
[406696053,1772093443780,-250.0,0.00019073,2]
[406696054,1772093443789,-250.0,0.00019073,2]
[406696055,1772093443798,-162.75399136,0.00019073,2]
[406696056,1772093443806,-250.0,0.00019073,2]
[406696057,1772093443816,-1957.856,0.00019073,2]
[406696058,1772093443824,-563.13996512,0.00019073,2]
[406696059,1772093443834,-250.0,0.00019073,2]
[406696060,1772093443844,-250.0,0.00019073,2]
[406696061,1772093443853,-250.0,0.00019073,2]
[406696062,1772093443863,-250.0,0.00019073,2]
[406696063,1772093443873,-250.0,0.00019073,2]
[406696064,1772093443883,-250.0,0.00019073,2]
[406696065,1772093443896,-250.0,0.00019073,2]
[406696066,1772093443906,-250.0,0.00019073,2]
[406696067,1772093443915,-250.0,0.00019073,2]
[406696068,1772093443924,-250.0,0.00019073,2]
[406696069,1772093443934,-250.0,0.00019073,2]
[406696070,1772093443943,-250.0,0.00019073,2]
[406696071,1772093443952,-250.0,0.00019073,2]
[406696072,1772093443961,-250.0,0.00019073,2]
[406696073,1772093443971,-250.0,0.00019073,2]
[406696074,1772093443980,-500.0,0.00019073,2]
[406696075,1772093443989,-194.72792766,0.00019073,2]
[406696076,1772093443999,-250.0,0.00019073,2]
[406696077,1772093444008,-250.0,0.00019073,2]
[406696078,1772093444016,-250.0,0.00019073,2]
[406696079,1772093444026,-500.0,0.00019073,2]
[406696080,1772093444034,-250.0,0.00019073,2]
[406696081,1772093444043,-250.0,0.00019073,2]
[406696082,1772093444054,-250.0,0.00019073,2]
[406696083,1772093444063,-250.0,0.00019073,2]
[406696084,1772093444072,-500.0,0.00019073,2]
[406696085,1772093444089,-250.0,0.00019073,2]
[406696086,1772093444100,-250.0,0.00019073,2]
[406696087,1772093444109,-194.72792766,0.00019073,2]
[406696088,1772093444119,-250.0,0.00019073,2]
[406696089,1772093444129,-500.0,0.00019073,2]
[406696090,1772093444138,-250.0,0.00019073,2]
[406696091,1772093444147,-250.0,0.00019073,2]
[406696092,1772093444157,-250.0,0.00019073,2]
[406696093,1772093444166,-201.93286099,0.00019073,2]
[406696094,1772093444176,-250.0,0.00019073,2]
[406696095,1772093444186,-500.0,0.00019073,2]
[406696096,1772093444196,-250.0,0.00019073,2]
[406696097,1772093444206,-250.0,0.00019073,2]
[406696098,1772093444215,-250.0,0.00019073,2]
[406696099,1772093444227,-209.40437684,0.00019073,2]
[406696100,1772093444237,-250.0,0.00019073,2]
[406696101,1772093444247,-500.0,0.00019073,2]
[406696102,1772093444257,-250.0,0.00019073,2]
[406696103,1772093444266,-250.0,0.00019073,2]
[406696104,1772093444276,-250.0,0.00019073,2]
[406696105,1772093444286,-217.15233878,0.00019073,2]
[406696106,1772093444295,-250.0,0.00019073,2]
[406696107,1772093444305,-500.0,0.00019073,2]
[406696108,1772093444314,-250.0,0.00019073,2]
[406696109,1772093444324,-250.0,0.00019073,2]
[406696110,1772093444333,-250.0,0.00019073,2]
[406696111,1772093444342,-500.0,0.00019073,2]
[406696112,1772093444352,-250.0,0.00019073,2]
[406696113,1772093444361,-250.0,0.00019073,2]
[406696114,1772093444373,-500.0,0.00019073,2]
[406696115,1772093444382,-225.18697532,0.00019073,2]
[406696116,1772093444391,-250.0,0.00019073,2]
[406696117,1772093444401,-250.0,0.00019073,2]
[406696118,1772093444410,-500.0,0.00019073,2]
[406696119,1772093444420,-500.0,0.00019073,2]
[406696120,1772093444430,-233.51889341,0.00019073,2]
[406696121,1772093444440,-242.15909246,0.00019073,2]
[406696122,1772093444450,-250.0,0.00019073,2]
[406696123,1772093444460,-251.11897888,0.00019073,2]
[406696124,1772093444470,-260.4103811,0.00019073,2]
[406696125,1772093444480,-250.0,0.00019073,2]
[406696126,1772093444490,-270.0455652,0.00019073,2]
[406696127,1772093444500,-207.13825911,0.00019073,2]
[406696128,1772093444510,-151.0,0.00019073,2]
[406696129,1772093444520,-500.0,0.00019073,2]
[406696130,1772093444529,-151.0,0.00019073,2]
[406696131,1772093444539,-151.0,0.00019073,2]
[406696132,1772093444549,-151.0,0.00019073,2]
[406696133,1772093444558,-2579.17784983,0.00019073,2]
[406696134,1772093444570,-280.03725112,0.00019073,2]
[406696135,1772093444580,-151.0,0.00019073,2]
[406696136,1772093444590,-500.0,0.00019073,2]
[406696137,1772093444599,-290.39862941,0.00019073,2]
[406696138,1772093444609,-151.0,0.00019073,2]
[406696139,1772093444619,-500.0,0.00019073,2]
[406696140,1772093444628,-301.1433787,0.00019073,2]
[406696141,1772093444637,-151.0,0.00019073,2]
[406696142,1772093444647,-151.0,0.00019073,2]
[406696143,1772093444656,-500.0,0.00019073,2]
[406696144,1772093444666,-500.0,0.00019073,2]
[406696145,1772093444675,-151.0,0.00019073,2]
[406696146,1772093444686,-500.0,0.00019073,2]
[406696147,1772093444695,-151.0,0.00019073,2]
[406696148,1772093444706,-500.0,0.00019073,2]
[406696149,1772093444716,-500.0,0.00019073,2]
[406696150,1772093444726,-151.0,0.00019073,2]
[406696151,1772093444736,-500.0,0.00019073,2]
[406696152,1772093444746,-500.0,0.00019073,2]
[406696153,1772093444755,-500.0,0.00019073,2]
[406696154,1772093444765,-500.0,0.00019073,2]
[406696155,1772093444775,-250.0,0.00019073,2]
[406696156,1772093444785,-500.0,0.00019073,2]
[406696157,1772093444795,-500.0,0.00019073,2]
[406696158,1772093444804,-250.0,0.00019073,2]
[406696159,1772093444814,-500.0,0.00019073,2]
[406696160,1772093444823,-500.0,0.00019073,2]
[406696161,1772093444833,-250.0,0.00019073,2]
[406696162,1772093444843,-500.0,0.00019073,2]
[406696163,1772093444853,-250.0,0.00019073,2]
[406696164,1772093444863,-151.0,0.00019073,2]
[406696165,1772093444872,-250.0,0.00019073,2]
[406696166,1772093444887,-500.0,0.00019073,2]
[406696167,1772093444897,-250.0,0.00019073,2]
[406696168,1772093444907,-250.0,0.00019073,2]
[406696169,1772093444917,-151.0,0.00019073,2]
[406696170,1772093444932,-500.0,0.00019073,2]
[406696171,1772093444942,-250.0,0.00019073,2]
[406696172,1772093444953,-250.0,0.00019073,2]
[406696173,1772093444963,-500.0,0.00019073,2]
[406696174,1772093444973,-151.0,0.00019073,2]
[406696175,1772093444983,-250.0,0.00019073,2]
[406696176,1772093444993,-500.0,0.00019073,2]
[406696177,1772093445003,-250.0,0.00019073,2]
[406696178,1772093445012,-151.0,0.00019073,2]
[406696179,1772093445023,-250.0,0.00019073,2]
[406696180,1772093445033,-250.0,0.00019073,2]
[406696181,1772093445043,-250.0,0.00019073,2]
[406696182,1772093445053,-250.0,0.00019073,2]
[406696183,1772093445063,-151.0,0.00019073,2]
[406696184,1772093445075,-250.0,0.00019073,2]
[406696185,1772093445084,-250.0,0.00019073,2]
[406696186,1772093445094,-151.0,0.00019073,2]
[406696187,1772093445103,-250.0,0.00019073,2]
[406696188,1772093445115,-2030.296672,0.00019128,2]
[406696189,1772093445125,-2181.0,0.00019146,2]
[406696190,1772093445135,-1386.0,0.00019146,2]
[406696191,1772093445145,-637.0,0.00019146,2]
[406696192,1772093445155,-430.0,0.00019146,2]
[406696193,1772093445165,-544.16,0.00019146,2]
[406696194,1772093445175,-728.0,0.00019146,2]
[406696195,1772093445184,-151.0,0.00019178,2]
[406696196,1772093445194,-2105.41764886,0.00019183,2]
[406696197,1772093445204,-318.6,0.00019211,2]
[406696198,1772093445214,-10000.0,0.00019211,2]
[406696200,1772093445224,-2183.31810187,0.00019238,2]
[406696202,1772093445234,-1957.85599999,0.00019293,2]
[406696203,1772093445244,-257.0367,0.00019339,30]
[406696204,1772093445255,-715.0,0.0001936,2]
[406696205,1772093445265,-276.23462901,0.000194,2]
[406696206,1772093445275,-500.0,0.00019418,2]
[406696207,1772093445285,-500.0,0.00019418,2]
[406696208,1772093445294,-183.873,0.00019419,2]
[406696209,1772093445303,-403.0,0.00019433,2]
[406696210,1772093445313,-318.6,0.00019485,2]
[406696211,1772093445322,-403.0,0.00019586,2]
[406696212,1772093445332,-500.0,0.00019621,2]
[406696213,1772093445342,-346.52348321,0.00019621,2]
[406696214,1772093445351,-2674.60743027,0.00019621,2]
[406696215,1772093445361,-150.0,0.00019713,2]
[406696216,1772093445371,-150.0,0.00019713,2]
[406696217,1772093445381,-150.0,0.00019713,2]
[406696218,1772093445391,-715.0,0.00019717,2]
[406696219,1772093445402,-774.0,0.00019757,2]
[406696220,1772093445412,-318.6,0.00019759,2]
[406696221,1772093445422,-864.0,0.00019761,2]
[406696222,1772093445432,-2147.10916082,0.0001981,7]
[406696223,1772093445443,-500.0,0.00019845,2]
[406696224,1772093445454,-500.0,0.00019845,2]
[406696225,1772093445463,-715.0,0.00019849,2]
[406696226,1772093445474,-163.74,0.000199,2]
[406696227,1772093445485,-192.80978145,0.00019989,2]
[406696228,1772093445495,-370.17738917,0.00019989,2]
[406696229,1772093445505,-1000.0,0.0002,2]
[406696230,1772093445515,-322.64999311,0.0002,2]
[406696231,1772093445525,-580.76998759,0.0002,2]
[406696232,1772093445535,-1032.47997794,0.0002,2]
[406696233,1772093445545,-709.018,0.0002,2]
[406696234,1772093445555,-389.94646994,0.0002,2]
[406696235,1772093445565,-445.65310851,0.0002,2]
[406696236,1772093445575,-695.63664906,0.0002,2]
[406696237,1772093445584,-1095.97526162,0.0002,30]
[406696238,1772093445594,-150.0004266,0.0002,7]
[406696239,1772093445605,-373.9095424,0.0002,2]
[406696240,1772093445615,-6983.63118548,0.0002,120]
[406696241,1772093445625,-23000.0,0.0002,2]
[406696242,1772093445635,-203.988619,0.0002,2]
[406696243,1772093445644,-1000.0,0.0002,2]
[406696244,1772093445654,-1380.20107225,0.0002,3]
[406696245,1772093445663,-150.0,0.0002,5]
[406696246,1772093445674,-814.43409379,0.0002,120]
[406696247,1772093445684,-814474.60792529,0.0002,2]
[406696248,1772093445693,-314.95042616,0.0002,2]
[406696249,1772093445703,-359.58340084,0.0002,2]
[406696250,1772093445713,-250.0,0.0002,10]
[406696251,1772093445723,-667.86163557,0.0002,5]
[406696252,1772093445733,-463.15889617,0.0002,2]
[406696253,1772093445743,-833.6860131,0.0002,2]
[406696254,1772093445753,-1482.10846774,0.0002,2]
[406696255,1772093445764,-2315.79448084,0.0002,2]
[406696256,1772093445774,-3331.40930836,0.0002,2]
[406696257,1772093445783,-2000.0,0.0002,7]
[406696258,1772093445793,-268.98557525,0.0002,2]
[406696259,1772093445802,-307.412086,0.0002,2]
[406696260,1772093445812,-479.851053,0.0002,2]
[406696261,1772093445822,-318.6,0.00020033,2]
[406696262,1772093445832,-250.0,0.000201,10]
[406696263,1772093446035,-500.0,0.00020103,2]
[406696264,1772093446045,-381.28870112,0.00020122,2]
[406696265,1772093446055,-200.0,0.00020125,5]
[406696266,1772093446064,-2773.56790519,0.00020169,2]
[406696267,1772093446074,-250.0,0.000202,10]
[406696268,1772093446083,-250.0,0.000203,10]
[406696269,1772093446092,-318.6,0.00020307,2]
[406696270,1772093446102,-403.0,0.00020357,2]
[406696271,1772093446112,-250.0,0.000204,10]
[406696272,1772093446121,-786.0,0.000204,2]
[406696273,1772093446130,-205.52978783,0.00020442,2]
[406696274,1772093446140,-250.0,0.000205,10]
[406696275,1772093446149,-556.158829,0.00020548,2]
[406696276,1772093446159,-2147.10916082,0.00020574,8]
[406696277,1772093446169,-318.6,0.00020581,2]
[406696278,1772093446178,-403.0,0.00020583,2]
[406696279,1772093446188,-2000.0,0.00020588,7]
[406696280,1772093446198,-250.0,0.000206,10]
[406696281,1772093446209,-2000.0,0.00020603,2]
[406696282,1772093446218,-2000.0,0.00020603,2]
[406696283,1772093446228,-2000.0,0.00020603,2]
[406696284,1772093446237,-2000.0,0.00020603,2]
[406696285,1772093446247,-2000.0,0.00020603,2]
[406696286,1772093446257,-2000.0,0.00020603,2]
[406696287,1772093446267,-2000.0,0.00020603,2]
[406696288,1772093446276,-2000.0,0.00020603,2]
[406696289,1772093446286,-2000.0,0.00020603,2]
[406696290,1772093446295,-2000.0,0.00020603,2]
[406696291,1772093446305,-2000.0,0.00020603,2]
[406696292,1772093446315,-2000.0,0.00020603,2]
[406696293,1772093446325,-2000.0,0.00020603,2]
[406696294,1772093446335,-2000.0,0.00020603,2]
[406696295,1772093446345,-2000.0,0.00020603,2]
[406696296,1772093446355,-2000.0,0.00020603,2]
[406696297,1772093446365,-2000.0,0.00020603,2]
[406696298,1772093446375,-2000.0,0.00020603,2]
[406696299,1772093446385,-2000.0,0.00020603,2]
[406696300,1772093446394,-2000.0,0.00020603,2]
[406696301,1772093446404,-2000.0,0.00020603,2]
[406696302,1772093446414,-2000.0,0.00020603,2]
[406696303,1772093446424,-2000.0,0.00020603,2]
[406696304,1772093446433,-2000.0,0.00020603,2]
[406696305,1772093446443,-623.0,0.00020603,2]
[406696306,1772093446452,-500.0,0.00020603,2]
[406696307,1772093446462,-500.0,0.00020603,2]
[406696308,1772093446472,-500.0,0.00020603,2]
[406696309,1772093446482,-500.0,0.00020603,2]
[406696310,1772093446491,-500.0,0.00020603,2]
[406696311,1772093446501,-500.0,0.00020603,2]
[406696312,1772093446510,-500.0,0.00020603,2]
[406696313,1772093446521,-500.0,0.00020603,2]
[406696314,1772093446531,-500.0,0.00020603,2]
[406696315,1772093446540,-500.0,0.00020603,2]
[406696316,1772093446550,-500.0,0.00020603,2]
[406696317,1772093446559,-500.0,0.00020603,2]
[406696318,1772093446569,-500.0,0.00020603,2]
[406696319,1772093446578,-500.0,0.00020603,2]
[406696320,1772093446588,-500.0,0.00020603,2]
[406696321,1772093446597,-500.0,0.00020603,2]
[406696322,1772093446606,-652.0,0.00020622,2]
[406696323,1772093446616,-150.0,0.00020622,2]
[406696324,1772093446626,-150.0,0.00020622,2]
[406696325,1772093446635,-209.0,0.00020622,2]
[406696326,1772093446645,-316.0,0.00020651,2]
[406696327,1772093446654,-823.0,0.00020657,2]
[406696328,1772093446664,-823.0,0.00020657,2]
[406696329,1772093446673,-250.0,0.000207,10]
[406696330,1772093446684,-589.33831138,0.00020706,2]
[406696331,1772093446694,-2876.18991768,0.00020717,2]
[406696332,1772093446703,-4523.8952405,0.00020761,2]
[406696333,1772093446713,-68701.5407941,0.00020761,2]
[406696334,1772093446723,-250.0,0.000208,10]
[406696335,1772093446732,-190.0,0.00020804,2]
[406696336,1772093446741,-162.0,0.00020809,2]
[406696337,1772093446751,-700.0,0.00020811,2]
[406696338,1772093446761,-403.0,0.00020816,2]
[406696339,1772093446770,-3292.0,0.00020849,2]
[406696340,1772093446780,-318.6,0.00020855,2]
[406696341,1772093446789,-500.0,0.00020868,2]
[406696342,1772093446799,-250.0,0.000209,10]
[406696343,1772093446809,-265.80541573,0.00020903,2]
[406696344,1772093446819,-24523.6871529,0.00020904,2]
[406696345,1772093446828,-1761.4565359,0.00020904,2]
[406696346,1772093446838,-3000.0,0.00021,2]
[406696347,1772093446847,-5028.274479,0.00021,2]
[406696348,1772093446857,-200.00535596,0.00021,2]
[406696349,1772093446866,-250.0,0.00021,10]
[406696350,1772093446876,-3000.0,0.0002101,2]
[406696351,1772093446889,-1477.6825697,0.00021011,2]
[406696352,1772093446899,-3000.0,0.0002102,2]
[406696353,1772093446910,-3000.0,0.0002103,2]
[406696354,1772093446919,-3000.0,0.0002104,2]
[406696355,1772093446929,-4787.71265,0.00021045,7]
[406696356,1772093446939,-700.0,0.00021048,2]
[406696357,1772093446949,-3000.0,0.0002105,2]
[406696358,1772093446958,-3000.0,0.0002106,2]
[406696359,1772093446968,-161.15810213,0.00021065,5]
[406696360,1772093446978,-3000.0,0.0002107,2]
[406696361,1772093446988,-3000.0,0.0002108,2]
[406696362,1772093446998,-3000.0,0.0002109,2]
[406696363,1772093447008,-3000.0,0.000211,2]
[406696364,1772093447017,-250.0,0.000211,10]
[406696365,1772093447027,-201.215118,0.000211,2]
[406696366,1772093447036,-635.74821069,0.000211,2]
[406696367,1772093447046,-635.74821069,0.000211,2]
[406696368,1772093447055,-3000.0,0.0002111,2]
[406696369,1772093447065,-3000.0,0.0002112,2]